fUST/lending_fUST_20250320
["ID","MTS","AMOUNT","RATE_DAILY","PERIOD"]
[356445901,1742461855890,-119013.49568685,0.0003315,20]
[356445902,1742461855900,-401.39312634,0.0003315,21]
[356445903,1742461856113,-500.0,0.0003315,21]
[356445904,1742461856124,-500.0,0.0003315,21]
[356445905,1742461856133,-500.0,0.0003315,21]
[356445906,1742461856143,-500.0,0.0003315,21]
[356445907,1742461856153,-500.0,0.0003315,21]
[356445908,1742461856163,-500.0,0.0003315,21]
[356445909,1742461856172,-571.38421011,0.0003315,21]
[356445910,1742461856182,-500.0,0.0003315,21]
[356445911,1742461856192,-500.0,0.0003315,21]
[356445912,1742461856201,-500.0,0.0003315,21]
[356445913,1742461856211,-500.0,0.0003315,21]
[356445914,1742461856221,-500.0,0.0003315,21]
[356445915,1742461856231,-500.0,0.0003315,21]
[356445916,1742461856240,-500.0,0.0003315,21]
[356445917,1742461856250,-242.30747378,0.0003315,21]
[356445918,1742461856259,-500.0,0.0003315,21]
[356445919,1742461856269,-500.0,0.0003315,21]
[356445920,1742461856279,-500.0,0.0003315,21]
[356445921,1742461856289,-500.0,0.0003315,21]
[356445922,1742461856299,-540.46184168,0.0003315,21]
[356445923,1742461856308,-500.0,0.0003315,21]
[356445924,1742461856318,-500.0,0.0003315,21]
[356445925,1742461856328,-500.0,0.0003315,21]
[356445926,1742461856337,-500.0,0.0003315,21]
[356445927,1742461856346,-500.0,0.0003315,21]
[356445928,1742461856356,-500.0,0.0003315,21]
[356445929,1742461856367,-500.0,0.0003315,21]
[356445930,1742461856377,-500.0,0.0003315,21]
[356445931,1742461856387,-500.0,0.0003315,21]
[356445932,1742461856396,-500.0,0.0003315,21]
[356445933,1742461856405,-500.0,0.0003315,21]
[356445934,1742461856415,-500.0,0.0003315,21]
[356445935,1742461856424,-500.0,0.0003315,21]
[356445936,1742461856435,-500.0,0.0003315,21]
[356445937,1742461856444,-375.385859,0.0003315,14]
[356445938,1742461856454,-375.385859,0.0003315,14]
[356445939,1742461856463,-375.385859,0.0003315,14]
[356445940,1742461856472,-375.385859,0.0003315,14]
[356445941,1742461856482,-375.385859,0.0003315,14]
[356445942,1742461856492,-695.15,0.0003315,21]
[356445943,1742461856501,-345.85621189,0.0003315,21]
[356445944,1742461856511,-375.385859,0.0003315,14]
[356445945,1742461856520,-375.385859,0.0003315,14]
[356445946,1742461856530,-375.385859,0.0003315,14]
[356445947,1742461856539,-375.385859,0.0003315,14]
[356445948,1742461856548,-375.385859,0.0003315,14]
[356445949,1742461856558,-500.0,0.0003315,21]
[356445950,1742461856567,-500.0,0.0003315,21]
[356445951,1742461856577,-317.48128309,0.0003315,21]
[356445952,1742461856586,-500.0,0.0003315,21]
[356445953,1742461856596,-500.0,0.0003315,21]
[356445954,1742461856605,-151.0,0.0003315,14]
[356445955,1742461856615,-1428.27,0.0003315,21]
[356445956,1742461856624,-151.0,0.0003315,14]
[356445957,1742461856634,-151.0,0.0003315,14]
[356445958,1742461856644,-151.0,0.0003315,14]
[356445959,1742461856654,-203.781369,0.0003315,14]
[356445960,1742461856664,-518.13714044,0.0003315,21]
[356445961,1742461856673,-151.0,0.0003315,14]
[356445962,1742461856683,-151.0,0.0003315,14]
[356445963,1742461856693,-500.0,0.0003315,21]
[356445964,1742461856703,-151.0,0.0003315,14]
[356445965,1742461856713,-151.0,0.0003315,14]
[356445966,1742461856726,-500.0,0.0003315,21]
[356445967,1742461856735,-151.0,0.0003315,14]
[356445968,1742461856745,-222.554594,0.0003315,14]
[356445969,1742461856756,-500.0,0.0003315,21]
[356445970,1742461856765,-500.0,0.0003315,21]
[356445971,1742461856774,-500.0,0.0003315,21]
[356445972,1742461856784,-500.0,0.0003315,21]
[356445973,1742461856795,-500.0,0.0003315,21]
[356445974,1742461856804,-500.0,0.0003315,21]
[356445975,1742461856814,-500.0,0.0003315,21]
[356445976,1742461856823,-500.0,0.0003315,21]
[356445977,1742461856832,-500.0,0.0003315,21]
[356445978,1742461856842,-500.0,0.0003315,21]
[356445979,1742461856851,-500.0,0.0003315,21]
[356445980,1742461856861,-634.53,0.0003315,21]
[356445981,1742461856870,-500.0,0.0003315,21]
[356445982,1742461856879,-500.0,0.0003315,21]
[356445983,1742461856889,-1404.91,0.0003315,21]
[356445984,1742461856898,-500.0,0.0003315,21]
[356445985,1742461856907,-566.83,0.0003315,21]
[356445986,1742461856916,-500.0,0.0003315,21]
[356445987,1742461856926,-1610.07,0.0003315,21]
[356445988,1742461856936,-2103.61,0.0003315,21]
[356445989,1742461856945,-500.0,0.0003315,21]
[356445990,1742461856956,-500.0,0.0003315,21]
[356445991,1742461856967,-500.0,0.0003315,21]
[356445992,1742461856976,-1432.87,0.0003315,21]
[356445993,1742461856986,-1129.64,0.0003315,21]
[356445994,1742461856995,-500.0,0.0003315,21]
[356445995,1742461857005,-1387.5,0.0003315,21]
[356445996,1742461857015,-500.0,0.0003315,21]
[356445997,1742461857025,-500.0,0.0003315,21]
[356445998,1742461857034,-500.0,0.0003315,21]
[356445999,1742461857044,-500.0,0.0003315,21]
[356446000,1742461857053,-500.0,0.0003315,21]
[356446001,1742461857063,-500.0,0.0003315,21]
[356446002,1742461857073,-500.0,0.0003315,21]
[356446003,1742461857084,-500.0,0.0003315,21]
[356446004,1742461857094,-910.96,0.0003315,21]
[356446005,1742461857103,-500.0,0.0003315,21]
[356446006,1742461857113,-500.0,0.0003315,21]
[356446007,1742461857123,-500.0,0.0003315,21]
[356446008,1742461857133,-500.0,0.0003315,21]
[356446009,1742461857143,-500.0,0.0003315,21]
[356446010,1742461857152,-500.0,0.0003315,21]
[356446011,1742461857162,-500.0,0.0003315,21]
[356446012,1742461857171,-500.0,0.0003315,21]
[356446013,1742461857181,-500.0,0.0003315,21]
[356446014,1742461857190,-619.69,0.0003315,21]
[356446015,1742461857199,-500.0,0.0003315,21]
[356446016,1742461857209,-500.0,0.0003315,21]
[356446017,1742461857219,-774.65,0.0003315,21]
[356446018,1742461857228,-500.0,0.0003315,21]
[356446019,1742461857238,-530.28126303,0.0003315,21]
[356446020,1742461857247,-500.0,0.0003315,21]
[356446021,1742461857257,-500.0,0.0003315,21]
[356446022,1742461857266,-500.0,0.0003315,120]
[356446023,1742461857275,-500.0,0.0003315,21]
[356446024,1742461857285,-500.0,0.0003315,21]
[356446025,1742461857294,-500.0,0.0003315,21]
[356446026,1742461857304,-500.0,0.0003315,21]
[356446027,1742461857314,-500.0,0.0003315,21]
[356446028,1742461857323,-500.0,0.0003315,21]
[356446029,1742461857333,-500.0,0.0003315,21]
[356446030,1742461857343,-646.82,0.0003315,21]
[356446031,1742461857353,-500.0,0.0003315,21]
[356446032,1742461857363,-500.0,0.0003315,21]
[356446033,1742461857373,-668.27,0.0003315,21]
[356446034,1742461857382,-2316.69,0.0003315,21]
[356446035,1742461857392,-500.0,0.0003315,21]
[356446036,1742461857401,-500.0,0.0003315,21]
[356446037,1742461857411,-990.92,0.0003315,21]
[356446038,1742461857421,-500.0,0.0003315,21]
[356446039,1742461857431,-1090.13,0.0003315,21]
[356446040,1742461857441,-500.0,0.0003315,21]
[356446041,1742461857452,-500.0,0.0003315,21]
[356446042,1742461857461,-500.0,0.0003315,21]
[356446043,1742461857471,-541.34593567,0.0003315,21]
[356446044,1742461857480,-1362.39,0.0003315,21]
[356446045,1742461857489,-500.0,0.0003315,21]
[356446046,1742461857498,-1927.43,0.0003315,21]
[356446047,1742461857507,-500.0,0.0003315,21]
[356446048,1742461857517,-500.0,0.0003315,7]
[356446049,1742461857526,-500.0,0.0003315,21]
[356446050,1742461857536,-507.45785048,0.0003315,21]
[356446051,1742461857545,-500.0,0.0003315,21]
[356446052,1742461857554,-500.0,0.0003315,21]
[356446053,1742461857563,-500.0,0.0003315,21]
[356446054,1742461857573,-500.0,0.0003315,21]
[356446055,1742461857583,-780.4,0.0003315,21]
[356446056,1742461857592,-500.0,0.0003315,21]
[356446057,1742461857601,-500.0,0.0003315,21]
[356446058,1742461857611,-500.0,0.0003315,21]
[356446059,1742461857620,-500.0,0.0003315,21]
[356446060,1742461857630,-500.0,0.0003315,21]
[356446061,1742461857639,-500.0,0.0003315,21]
[356446062,1742461857649,-500.0,0.0003315,21]
[356446063,1742461857659,-500.0,0.0003315,21]
[356446064,1742461857668,-500.0,0.0003315,21]
[356446065,1742461857677,-500.0,0.0003315,21]
[356446066,1742461857687,-500.0,0.0003315,21]
[356446067,1742461857696,-500.0,0.0003315,21]
[356446068,1742461857706,-1563.76,0.0003315,21]
[356446069,1742461857717,-500.0,0.0003315,21]
[356446070,1742461857727,-500.0,0.0003315,21]
[356446071,1742461857736,-500.0,0.0003315,21]
[356446072,1742461857746,-686.6,0.0003315,21]
[356446073,1742461857756,-500.0,0.0003315,2]
[356446074,1742461857766,-500.0,0.0003315,21]
[356446075,1742461857776,-500.0,0.0003315,21]
[356446076,1742461857785,-500.0,0.0003315,21]
[356446077,1742461857795,-157.871898,0.0003315,14]
[356446078,1742461857806,-500.0,0.0003315,21]
[356446079,1742461857815,-585.92320371,0.0003315,21]
[356446080,1742461857825,-500.0,0.0003315,21]
[356446081,1742461857834,-500.0,0.0003315,21]
[356446082,1742461857844,-500.0,0.0003315,21]
[356446083,1742461857853,-500.0,0.0003315,21]
[356446084,1742461857862,-500.0,0.0003315,21]
[356446085,1742461857871,-1655.01,0.0003315,21]
[356446086,1742461857881,-500.0,0.0003315,21]
[356446087,1742461857890,-500.0,0.0003315,21]
[356446088,1742461857899,-500.0,0.0003315,21]
[356446089,1742461857908,-540.01,0.0003315,21]
[356446090,1742461857917,-500.0,0.0003315,21]
[356446091,1742461857926,-575.01194189,0.0003315,21]
[356446092,1742461857935,-500.0,0.0003315,21]
[356446093,1742461857945,-500.0,0.0003315,14]
[356446094,1742461857953,-529.79,0.0003315,21]
[356446095,1742461857962,-552.74,0.0003315,21]
[356446096,1742461857971,-792.16,0.0003315,21]
[356446097,1742461857980,-500.0,0.0003315,21]
[356446098,1742461857989,-500.0,0.0003315,21]
[356446099,1742461857998,-500.0,0.0003315,21]
[356446100,1742461858007,-1685.63,0.0003315,21]
[356446101,1742461858018,-500.0,0.0003315,21]
[356446102,1742461858027,-500.0,0.0003315,21]
[356446103,1742461858036,-583.69,0.0003315,21]
[356446104,1742461858046,-500.0,0.0003315,21]
[356446105,1742461858055,-1092.59,0.0003315,21]
[356446106,1742461858064,-649.31,0.0003315,21]
[356446107,1742461858074,-500.0,0.0003315,21]
[356446108,1742461858083,-500.0,0.0003315,21]
[356446109,1742461858092,-500.0,0.0003315,21]
[356446110,1742461858102,-500.0,0.0003315,21]
[356446111,1742461858111,-600.4847682,0.0003315,21]
[356446112,1742461858120,-500.0,0.0003315,21]
[356446113,1742461858129,-500.0,0.0003315,21]
[356446114,1742461858138,-500.0,0.0003315,21]
[356446115,1742461858148,-187.50608125,0.0003315,21]
[356446116,1742461858157,-500.0,0.0003315,21]
[356446117,1742461858167,-1920.45,0.0003315,21]
[356446118,1742461858176,-575.54,0.0003315,21]
[356446119,1742461858185,-533.57,0.0003315,21]
[356446120,1742461858195,-500.0,0.0003315,21]
[356446121,1742461858204,-500.0,0.0003315,21]
[356446122,1742461858213,-500.0,0.0003315,21]
[356446123,1742461858222,-500.0,0.0003315,21]
[356446124,1742461858232,-1325.8,0.0003315,21]
[356446125,1742461858241,-151.0,0.0003315,14]
[356446126,1742461858250,-500.0,0.0003315,21]
[356446127,1742461858260,-151.0,0.0003315,14]
[356446128,1742461858270,-151.0,0.0003315,14]
[356446129,1742461858280,-500.0,0.0003315,21]
[356446130,1742461858290,-245.840675,0.0003315,14]
[356446131,1742461858300,-500.0,0.0003315,21]
[356446132,1742461858309,-500.0,0.0003315,21]
[356446133,1742461858319,-500.0,0.0003315,21]
[356446134,1742461858329,-500.0,0.0003315,21]
[356446135,1742461858339,-1482.65,0.0003315,21]
[356446136,1742461858349,-500.0,0.0003315,21]
[356446137,1742461858358,-500.0,0.0003315,21]
[356446138,1742461858368,-500.0,0.0003315,21]
[356446139,1742461858378,-500.0,0.0003315,21]
[356446140,1742461858388,-1002.11,0.0003315,21]
[356446141,1742461858463,-500.0,0.0003315,21]
[356446142,1742461858472,-500.0,0.0003315,21]
[356446143,1742461858482,-500.0,0.0003315,21]
[356446144,1742461858491,-500.0,0.0003315,21]
[356446145,1742461858500,-500.0,0.0003315,21]
[356446146,1742461858509,-500.0,0.0003315,21]
[356446147,1742461858518,-500.0,0.0003315,21]
[356446148,1742461858527,-500.0,0.0003315,21]
[356446149,1742461858536,-500.0,0.0003315,21]
[356446150,1742461858545,-1277.35,0.0003315,21]
[356446151,1742461858554,-500.0,0.0003315,21]
[356446152,1742461858563,-500.0,0.0003315,21]
[356446153,1742461858573,-500.0,0.0003315,21]
[356446154,1742461858582,-612.1,0.0003315,21]
[356446155,1742461858591,-729.98,0.0003315,21]
[356446156,1742461858600,-500.0,0.0003315,21]
[356446157,1742461858610,-761.87,0.0003315,21]
[356446158,1742461858619,-536.94,0.0003315,21]
[356446159,1742461858628,-584.07,0.0003315,21]
[356446160,1742461858637,-500.0,0.0003315,21]
[356446161,1742461858647,-662.53,0.0003315,21]
[356446162,1742461858656,-500.0,0.0003315,21]
[356446163,1742461858665,-1192.63,0.0003315,21]
[356446164,1742461858675,-500.0,0.0003315,21]
[356446165,1742461858685,-500.0,0.0003315,21]
[356446166,1742461858694,-974.22,0.0003315,21]
[356446167,1742461858703,-691.33,0.0003315,21]
[356446168,1742461858713,-500.0,0.0003315,21]
[356446169,1742461858725,-500.0,0.0003315,21]
[356446170,1742461858734,-500.0,0.0003315,21]
[356446171,1742461858744,-639.45961557,0.0003315,21]
[356446172,1742461858753,-500.0,0.0003315,21]
[356446173,1742461858762,-500.0,0.0003315,21]
[356446174,1742461858771,-614.26,0.0003315,21]
[356446175,1742461858780,-500.0,0.0003315,21]
[356446176,1742461858790,-500.0,0.0003315,21]
[356446177,1742461858799,-500.0,0.0003315,21]
[356446178,1742461858808,-500.0,0.0003315,21]
[356446179,1742461858818,-597.43417505,0.0003315,21]
[356446180,1742461858827,-500.0,0.0003315,21]
[356446181,1742461858836,-500.0,0.0003315,21]
[356446182,1742461858845,-753.03,0.0003315,21]
[356446183,1742461858855,-500.0,0.0003315,21]
[356446184,1742461858864,-875.53,0.0003315,21]
[356446185,1742461858873,-500.0,0.0003315,21]
[356446186,1742461858883,-500.0,0.0003315,21]
[356446187,1742461858892,-1180.94,0.0003315,21]
[356446188,1742461858901,-500.0,0.0003315,21]
[356446189,1742461858911,-1130.54,0.0003315,21]
[356446190,1742461858919,-428.47266938,0.0003315,21]
[356446191,1742461858929,-500.0,0.0003315,21]
[356446192,1742461858939,-911.08,0.0003315,21]
[356446193,1742461858948,-500.0,0.0003315,21]
[356446194,1742461858957,-558.15,0.0003315,21]
[356446195,1742461858967,-500.0,0.0003315,21]
[356446196,1742461858976,-500.0,0.0003315,21]
[356446197,1742461858986,-151.0,0.0003315,14]
[356446198,1742461858995,-151.0,0.0003315,14]
[356446199,1742461859006,-500.0,0.0003315,21]
[356446200,1742461859015,-500.0,0.0003315,2]
[356446201,1742461859025,-500.0,0.0003315,21]
[356446202,1742461859034,-151.0,0.0003315,14]
[356446203,1742461859044,-500.0,0.0003315,21]
[356446204,1742461859053,-151.0,0.0003315,14]
[356446205,1742461859063,-151.0,0.0003315,14]
[356446206,1742461859072,-732.77,0.0003315,21]
[356446207,1742461859082,-500.0,0.0003315,21]
[356446208,1742461859091,-713.449469,0.0003315,14]
[356446209,1742461859100,-713.449469,0.0003315,14]
[356446210,1742461859109,-641.16,0.0003315,21]
[356446211,1742461859117,-713.449469,0.0003315,14]
[356446212,1742461859126,-500.0,0.0003315,21]
[356446213,1742461859134,-713.449469,0.0003315,14]
[356446214,1742461859144,-713.449469,0.0003315,14]
[356446215,1742461859154,-713.449469,0.0003315,14]
[356446216,1742461859164,-500.0,0.0003315,21]
[356446217,1742461859173,-544.26804877,0.0003315,21]
[356446218,1742461859182,-2588.15,0.0003315,21]
[356446219,1742461859191,-305.25,0.0003315,7]
[356446220,1742461859200,-2770.24,0.0003315,21]
[356446221,1742461859211,-713.449469,0.0003315,14]
[356446222,1742461859220,-500.0,0.0003315,21]
[356446223,1742461859230,-713.449469,0.0003315,14]
[356446224,1742461859239,-655.48,0.0003315,21]
[356446225,1742461859249,-713.449469,0.0003315,14]
[356446226,1742461859259,-500.0,0.0003315,21]
[356446227,1742461859269,-713.449469,0.0003315,14]
[356446228,1742461859279,-713.449469,0.0003315,14]
[356446229,1742461859289,-713.449469,0.0003315,14]
[356446230,1742461859299,-500.0,0.0003315,21]
[356446231,1742461859309,-1807.0,0.0003315,21]
[356446232,1742461859319,-368.84575,0.0003315,14]
[356446233,1742461859328,-500.0,0.0003315,21]
[356446234,1742461859337,-368.84575,0.0003315,14]
[356446235,1742461859347,-368.84575,0.0003315,14]
[356446236,1742461859357,-500.0,0.0003315,21]
[356446237,1742461859366,-368.84575,0.0003315,14]
[356446238,1742461859375,-1865.76,0.0003315,21]
[356446239,1742461859385,-368.84575,0.0003315,14]
[356446240,1742461859394,-1696.68,0.0003315,21]
[356446241,1742461859403,-500.0,0.0003315,21]
[356446242,1742461859413,-161.10321507,0.0003315,21]
[356446243,1742461859423,-368.84575,0.0003315,14]
[356446244,1742461859433,-658.72,0.0003315,21]
[356446245,1742461859443,-368.84575,0.0003315,14]
[356446246,1742461859452,-500.0,0.0003315,21]
[356446247,1742461859462,-368.84575,0.0003315,14]
[356446248,1742461859471,-368.84575,0.0003315,14]
[356446249,1742461859481,-368.84575,0.0003315,14]
[356446250,1742461859490,-292.37804928,0.0003315,21]
[356446251,1742461859500,-500.0,0.0003315,21]
[356446252,1742461859509,-975.97,0.0003315,21]
[356446253,1742461859518,-500.0,0.0003315,21]
[356446254,1742461859528,-500.0,0.0003315,21]
[356446255,1742461859537,-500.0,0.0003315,21]
[356446256,1742461859546,-500.0,0.0003315,21]
[356446257,1742461859555,-733.17,0.0003315,21]
[356446258,1742461859564,-563.85024217,0.0003315,21]
[356446259,1742461859574,-500.0,0.0003315,21]
[356446260,1742461859583,-500.0,0.0003315,21]
[356446261,1742461859592,-500.0,0.0003315,21]
[356446262,1742461859601,-824.24,0.0003315,21]
[356446263,1742461859612,-903.13,0.0003315,21]
[356446264,1742461859622,-500.0,0.0003315,21]
[356446265,1742461859632,-2048.73,0.0003315,21]
[356446266,1742461859641,-2000.0,0.0003315,2]
[356446267,1742461859651,-621.17,0.0003315,21]
[356446268,1742461859660,-500.0,0.0003315,21]
[356446269,1742461859669,-1685.17,0.0003315,21]
[356446270,1742461859679,-1596.9,0.0003315,21]
[356446271,1742461859690,-500.0,0.0003315,21]
[356446272,1742461859699,-320.93722485,0.0003315,21]
[356446273,1742461859709,-500.0,0.0003315,21]
[356446274,1742461859723,-633.47828417,0.0003315,21]
[356446275,1742461859733,-500.0,0.0003315,21]
[356446276,1742461859743,-500.0,0.0003315,21]
[356446277,1742461859752,-898.4,0.0003315,21]
[356446278,1742461859763,-500.0,0.0003315,21]
[356446279,1742461859772,-1000.0,0.0003315,21]
[356446280,1742461859782,-672.21,0.0003315,21]
[356446281,1742461859792,-1130.2,0.0003315,21]
[356446282,1742461859802,-687.1,0.0003315,21]
[356446283,1742461859813,-500.0,0.0003315,21]
[356446284,1742461859822,-1232.97,0.0003315,21]
[356446285,1742461859831,-500.0,0.0003315,21]
[356446286,1742461859841,-500.0,0.0003315,21]
[356446287,1742461859850,-500.0,0.0003315,21]
[356446288,1742461859860,-500.0,0.0003315,21]
[356446289,1742461859869,-500.0,0.0003315,21]
[356446290,1742461859884,-1859.15,0.0003315,21]
[356446291,1742461859895,-500.0,0.0003315,21]
[356446292,1742461859905,-500.0,0.0003315,21]
[356446293,1742461859915,-1253.26,0.0003315,21]
[356446294,1742461859925,-500.0,0.0003315,21]
[356446295,1742461859936,-687.5,0.0003315,21]
[356446296,1742461859946,-500.0,0.0003315,21]
[356446297,1742461859955,-500.0,0.0003315,21]
[356446298,1742461859964,-500.0,0.0003315,21]
[356446299,1742461859973,-500.0,0.0003315,21]
[356446300,1742461859983,-206.03238874,0.0003315,21]
[356446301,1742461859992,-1111.443784,0.0003315,14]
[356446302,1742461860001,-1207.88,0.0003315,21]
[356446303,1742461860011,-1111.443784,0.0003315,14]
[356446304,1742461860020,-1111.443784,0.0003315,14]
[356446305,1742461860030,-1111.443784,0.0003315,14]
[356446306,1742461860040,-1961.79,0.0003315,21]
[356446307,1742461860050,-1111.443784,0.0003315,14]
[356446308,1742461860060,-151.0,0.0003315,14]
[356446309,1742461860069,-500.0,0.0003315,21]
[356446310,1742461860079,-781.15,0.0003315,21]
[356446311,1742461860089,-151.0,0.0003315,14]
[356446312,1742461860100,-1111.443784,0.0003315,14]
[356446313,1742461860110,-1111.443784,0.0003315,14]
[356446314,1742461860119,-1111.443784,0.0003315,14]
[356446315,1742461860129,-151.0,0.0003315,14]
[356446316,1742461860139,-1111.443784,0.0003315,14]
[356446317,1742461860148,-151.0,0.0003315,14]
[356446318,1742461860157,-1111.443784,0.0003315,14]
[356446319,1742461860167,-151.0,0.0003315,14]
[356446320,1742461860177,-532.84990615,0.0003315,21]
[356446321,1742461860186,-151.0,0.0003315,14]
[356446322,1742461860195,-500.0,0.0003315,21]
[356446323,1742461860205,-151.0,0.0003315,14]
[356446324,1742461860215,-151.0,0.0003315,14]
[356446325,1742461860224,-151.0,0.0003315,14]
[356446326,1742461860233,-500.0,0.0003315,21]
[356446327,1742461860243,-151.0,0.0003315,14]
[356446328,1742461860252,-500.0,0.0003315,21]
[356446329,1742461860263,-500.0,0.0003315,21]
[356446330,1742461860272,-500.0,0.0003315,21]
[356446331,1742461860282,-1061.76,0.0003315,21]
[356446332,1742461860292,-1171.37,0.0003315,21]
[356446333,1742461860301,-500.0,0.0003315,21]
[356446334,1742461860311,-500.0,0.0003315,21]
[356446335,1742461860321,-500.0,0.0003315,21]
[356446336,1742461860331,-510.17517928,0.0003315,21]
[356446337,1742461860340,-736.59,0.0003315,21]
[356446338,1742461860350,-500.0,0.0003315,21]
[356446339,1742461860359,-500.0,0.0003315,21]
[356446340,1742461860369,-337.7984095,0.0003315,21]
[356446341,1742461860379,-500.0,0.0003315,21]
[356446342,1742461860388,-500.0,0.0003315,21]
[356446343,1742461860398,-500.0,0.0003315,21]
[356446344,1742461860408,-500.0,0.0003315,21]
[356446345,1742461860419,-660.49,0.0003315,21]
[356446346,1742461860429,-1358.55,0.0003315,21]
[356446347,1742461860439,-609.52,0.0003315,21]
[356446348,1742461860449,-500.0,0.0003315,21]
[356446349,1742461860460,-1210.31,0.0003315,21]
[356446350,1742461860470,-1714.71,0.0003315,21]
[356446351,1742461860480,-2065.34,0.0003315,21]
[356446352,1742461860490,-500.0,0.0003315,21]
[356446353,1742461860500,-500.0,0.0003315,21]
[356446354,1742461860513,-500.0,0.0003315,21]
[356446355,1742461860523,-500.0,0.0003315,21]
[356446356,1742461860533,-500.0,0.0003315,21]
[356446357,1742461860542,-3075.26,0.0003315,2]
[356446358,1742461860552,-675.19,0.0003315,21]
[356446359,1742461860562,-500.0,0.0003315,21]
[356446360,1742461860572,-500.0,0.0003315,21]
[356446361,1742461860582,-737.09,0.0003315,120]
[356446362,1742461860592,-500.0,0.0003315,21]
[356446363,1742461860602,-500.0,0.0003315,21]
[356446364,1742461860612,-500.0,0.0003315,21]
[356446365,1742461860621,-1851.11,0.0003315,21]
[356446366,1742461860631,-500.0,0.0003315,21]
[356446367,1742461860642,-500.0,0.0003315,21]
[356446368,1742461860651,-500.0,0.0003315,21]
[356446369,1742461860662,-2009.68,0.0003315,21]
[356446370,1742461860673,-500.0,0.0003315,21]
[356446371,1742461860682,-942.57,0.0003315,21]
[356446372,1742461860694,-539.71017009,0.0003315,21]
[356446373,1742461860704,-500.0,0.0003315,21]
[356446374,1742461860714,-500.0,0.0003315,21]
[356446375,1742461860728,-964.88,0.0003315,21]
[356446376,1742461860738,-500.0,0.0003315,21]
[356446377,1742461860747,-500.0,0.0003315,21]
[356446378,1742461860758,-2419.44,0.0003315,21]
[356446379,1742461860767,-500.0,0.0003315,21]
[356446380,1742461860777,-2542.88,0.0003315,21]
[356446381,1742461860787,-685.1,0.0003315,21]
[356446382,1742461860797,-1476.12,0.0003315,21]
[356446383,1742461860808,-151.0,0.0003315,14]
[356446384,1742461860817,-500.0,0.0003315,21]
[356446385,1742461860827,-1000.0,0.0003315,21]
[356446386,1742461860837,-500.0,0.0003315,21]
[356446387,1742461860847,-500.0,0.0003315,21]
[356446388,1742461860857,-4351.88,0.0003315,21]
[356446389,1742461860866,-500.0,0.0003315,21]
[356446390,1742461860876,-500.0,0.0003315,21]
[356446391,1742461860885,-500.0,0.0003315,21]
[356446392,1742461860895,-500.0,0.0003315,21]
[356446393,1742461860905,-650.64,0.0003315,21]
[356446394,1742461860916,-2530.87,0.0003315,21]
[356446395,1742461860927,-500.0,0.0003315,21]
[356446396,1742461860938,-500.0,0.0003315,21]
[356446397,1742461860949,-500.0,0.0003315,21]
[356446398,1742461860959,-500.0,0.0003315,21]
[356446399,1742461860969,-578.49,0.0003315,21]
[356446400,1742461860980,-2689.17,0.0003315,21]